bitfinex/quotes_ETHUSD_20241122
["timestamp","ask_amount","ask_price","bid_price","bid_amount"]
[1732306518197,0.9837,3286.1,3286.0,2.80877131]
[1732306518789,0.8337,3286.1,3286.0,2.80877131]
[1732306520001,0.2048448,3286.1,3286.0,2.80877131]
[1732306520204,0.1585331,3287.7,3286.0,2.80877131]
[1732306520205,1.214698,3286.4,3286.0,2.80877131]
[1732306520440,0.1585331,3287.7,3286.3,2.80877131]
[1732306520744,1.72935431,3287.6,3287.0,2.80877131]
[1732306520893,0.18778874,3287.5,3287.0,2.80877131]
[1732306521096,0.18778874,3287.5,3286.7,2.80877131]
[1732306521777,0.8337,3287.4,3286.7,2.80877131]
[1732306522062,0.8337,3287.4,3287.3,2.80877131]
[1732306522273,1.10878431,3287.4,3287.0,2.80877131]
[1732306522559,1.10878431,3287.4,3286.7,2.80877131]
[1732306522770,1.10878431,3287.4,3286.6,3.40270756]
[1732306523846,0.55,3287.3,3286.6,3.40270756]
[1732306524056,0.55,3286.9,3286.2,3.40270756]
[1732306524352,0.55,3286.7,3286.2,3.40270756]
[1732306524553,0.55,3286.5,3286.2,3.40270756]
[1732306532660,0.8337,3286.9,3286.3,0.41789879]
[1732306532994,0.8337,3286.9,3286.8,3.40270756]
[1732306534199,1.3837,3286.9,3286.8,3.40270756]
[1732306534694,0.55,3286.9,3286.8,3.40270756]
[1732306534904,0.8337,3287.3,3286.8,3.40270756]
[1732306535195,0.8337,3287.3,3287.2,3.40270756]
[1732306535393,2.048201,3287.6,3287.2,3.40270756]
[1732306535691,0.21967341,3287.5,3287.2,3.82060635]
[1732306535854,0.8337,3287.6,3287.2,3.82060635]
[1732306536058,1.214235,3287.8,3287.3,0.41789879]
[1732306536397,0.8337,3287.9,3287.6,3.40270756]
[1732306536803,0.01,3289.1,3287.6,3.40270756]
[1732306537005,1.21411,3288.1,3287.6,3.40270756]
[1732306538308,0.8337,3288.3,3287.6,3.40270756]
[1732306538309,1.214079,3288.2,3287.6,3.40270756]
[1732306538666,0.8337,3288.3,3287.6,3.40270756]
[1732306539071,2.047752,3288.3,3287.6,3.40270756]
[1732306539302,0.6985331,3287.7,3287.6,3.40270756]
[1732306539608,0.6985331,3287.7,3287.6,5.23660635]
[1732306539609,0.1485331,3287.7,3287.6,5.23660635]
[1732306539802,0.1485331,3287.7,3287.6,5.76026698]
[1732306541612,0.6985331,3287.7,3287.6,5.76026698]
[1732306542108,0.6985331,3287.7,3287.6,5.23660635]
[1732306543012,0.6985331,3287.7,3287.6,7.44312933]
[1732306543666,0.6985331,3287.7,3287.6,7.02523054]
[1732306544767,0.6985331,3287.7,3287.6,7.44312933]
[1732306545197,0.6985331,3287.7,3287.6,7.02523054]
[1732306545709,0.6985331,3287.7,3287.6,5.60923054]
[1732306546509,0.6985331,3287.7,3287.6,2.80461527]
[1732306549033,0.6985331,3287.7,3287.0,2.80461527]
[1732306549034,0.55,3287.4,3287.0,2.80461527]
[1732306549339,0.1485331,3287.7,3286.4,2.80461527]
[1732306549340,0.7253,3287.1,3286.4,2.80461527]
[1732306549682,0.55,3287.2,3286.4,2.80461527]
[1732306550028,0.1485331,3287.7,3287.1,2.80461527]
[1732306550029,0.7253,3287.4,3287.1,2.80461527]
[1732306550895,0.7253,3287.4,3287.1,3.4017185]
[1732306551224,0.55,3287.3,3287.1,3.4017185]
[1732306552599,0.55,3287.3,3286.7,3.4017185]
[1732306553022,0.55,3287.3,3285.4,0.02]
[1732306553023,0.7253,3287.2,3286.3,3.4017185]
[1732306553224,0.55,3287.1,3286.3,3.4017185]
[1732306553701,0.55,3286.9,3285.9,3.4017185]
[1732306554200,0.55,3286.9,3286.3,3.4017185]
[1732306555095,0.55,3286.9,3286.7,3.4017185]
[1732306556330,0.1485331,3287.7,3286.7,3.4017185]
[1732306556331,0.7253,3287.3,3286.7,3.4017185]
[1732306557107,0.7253,3287.3,3287.1,3.4017185]
[1732306557592,0.7253,3287.3,3286.7,3.4017185]
[1732306558307,0.55,3287.2,3286.7,3.4017185]
[1732306559614,0.55,3287.2,3286.3,3.4017185]
[1732306560755,0.55,3287.0,3285.9,3.81982229]
[1732306560939,0.55,3286.8,3285.9,3.4017185]
[1732306562418,0.55,3286.8,3286.3,3.4017185]
[1732306563021,0.7253,3286.9,3286.7,3.4017185]
[1732306563422,0.7253,3287.6,3286.7,3.4017185]
[1732306563659,0.7253,3287.6,3286.3,3.4017185]
[1732306564337,0.55,3287.5,3286.3,3.4017185]
[1732306564521,0.55,3287.1,3286.3,4.24616413]
[1732306566547,0.55,3287.1,3286.3,0.84444563]
[1732306566759,0.7253,3287.0,3286.3,0.84444563]
[1732306566963,0.55,3286.9,3286.3,0.84444563]
[1732306567471,0.55,3286.9,3286.3,4.24616413]
[1732306568871,0.55,3286.9,3286.3,0.84444563]
[1732306569045,0.01,3287.5,3286.3,0.84444563]
[1732306569046,0.55,3286.7,3286.3,0.84444563]
[1732306569253,0.55,3286.7,3286.3,4.24616413]
[1732306571937,0.1485331,3287.7,3286.3,4.24616413]
[1732306571938,0.55,3286.9,3286.3,4.24616413]
[1732306572748,0.55,3286.9,3286.7,2.8076357]
[1732306573878,0.7253,3287.6,3286.8,2.8076357]
[1732306574080,0.7253,3287.6,3287.1,2.8076357]
[1732306574687,0.7253,3287.6,3287.4,2.8076357]
[1732306574849,0.1485331,3287.7,3287.4,2.8076357]
[1732306574850,0.1485331,3287.7,3287.5,2.8076357]
[1732306575043,0.1485331,3287.7,3287.6,1.409]
[1732306576178,0.1485331,3287.7,3287.6,4.2166357]
[1732306576557,0.1485331,3287.7,3287.6,1.409]
[1732306577743,0.6985331,3287.7,3287.6,1.409]
[1732306579106,0.6985331,3287.7,3287.4,2.8076357]
[1732306579107,0.55,3287.6,3287.4,2.8076357]
[1732306579385,0.55,3287.6,3287.5,2.8076357]
[1732306579737,0.1485331,3287.7,3287.5,2.8076357]
[1732306579937,0.1485331,3287.7,3287.4,2.8076357]
[1732306580885,0.55,3287.6,3287.4,2.8076357]
[1732306582845,0.4696,3287.5,3287.4,2.8076357]
[1732306583179,1.0196,3287.5,3287.4,2.8076357]
[1732306585398,0.55,3287.6,3287.4,2.8076357]
[1732306587951,0.55,3287.6,3287.4,8.8926357]
[1732306590994,0.1485331,3287.7,3287.5,2.8380527]
[1732306591152,0.1485331,3287.7,3287.4,8.8926357]
[1732306592265,0.55,3287.6,3287.4,8.8926357]
[1732306597106,0.55,3287.6,3287.5,1.2369]
[1732306597271,0.55,3287.6,3287.5,4.0445357]
[1732306597473,0.55,3287.6,3287.5,1.2369]
[1732306598027,0.55,3287.6,3287.4,8.8926357]
[1732306600071,0.4696,3287.5,3287.4,8.8926357]
[1732306600407,1.0196,3287.5,3287.4,8.8926357]
[1732306600710,1.19141331,3287.5,3287.4,8.8926357]
[1732306602517,0.55,3287.6,3287.4,8.8926357]
[1732306602868,0.1485331,3287.7,3287.5,1.2117]
[1732306604203,0.55,3287.6,3287.5,1.2117]
[1732306606278,0.1485331,3287.7,3287.5,4.04974967]
[1732306607785,0.55,3287.6,3287.5,4.04974967]
[1732306608917,0.55,3287.6,3287.5,4.0193357]
[1732306613182,0.55,3287.6,3287.5,4.049747]
[1732306614310,0.55,3287.6,3287.5,4.0193357]
[1732306614511,0.55,3287.6,3287.5,4.04974672]
[1732306614709,0.55,3287.6,3287.5,4.0193357]
[1732306615021,0.55,3287.6,3287.5,4.04974654]
[1732306615227,0.55,3287.6,3287.5,4.04974638]
[1732306615565,0.55,3287.6,3287.5,5.31357392]
[1732306615887,0.55,3287.6,3287.5,5.34398482]
[1732306617224,0.55,3287.6,3287.5,5.31357392]
[1732306617401,0.55,3287.6,3287.5,5.34398459]
[1732306617605,0.55,3287.6,3287.5,5.31357392]
[1732306617792,0.55,3287.6,3287.5,5.34398459]
[1732306618120,0.55,3287.6,3287.5,5.31357392]
[1732306618521,0.55,3287.6,3287.5,5.34398457]
[1732306618735,0.55,3287.6,3287.5,5.31357392]
[1732306619020,0.55,3287.6,3287.5,5.34398477]
[1732306620224,0.1485331,3287.7,3287.5,5.34398477]
[1732306620745,0.1485331,3287.7,3287.4,8.8926357]
[1732306620746,0.55,3287.6,3287.4,8.8926357]
[1732306621249,0.55,3287.6,3287.5,2.8076357]
[1732306621550,0.1485331,3287.7,3287.5,2.8076357]
[1732306621725,0.1485331,3287.7,3287.4,10.0978357]
[1732306621726,0.55,3287.6,3287.4,10.0978357]
[1732306622031,0.55,3287.6,3287.4,9.9698357]
[1732306622234,0.1485331,3287.7,3287.5,0.03041292]
[1732306622437,0.6985331,3287.7,3287.6,0.03040956]
[1732306622608,0.55,3287.6,3287.4,9.9698357]
[1732306622808,0.55,3287.6,3287.4,8.7646357]
[1732306623111,0.55,3287.6,3287.4,4.47484458]
[1732306623306,0.55,3287.6,3287.5,0.09385334]
[1732306623495,0.55,3287.6,3287.5,0.55797558]
[1732306623843,0.55,3287.6,3287.5,2.8076357]
[1732306624000,0.55,3287.6,3287.1,1.8e-07]
[1732306624001,1.7646,3287.6,3287.1,1.8e-07]
[1732306624344,1.7646,3287.6,3286.4,2.8076357]
[1732306624345,0.55,3287.2,3286.4,2.8076357]
[1732306625211,0.55,3287.2,3287.1,2.8076357]
[1732306625731,0.55,3287.2,3287.1,2.4803357]
[1732306626502,1.7646,3287.2,3287.1,2.4803357]
[1732306627943,0.55,3287.2,3287.1,2.4803357]
[1732306628236,0.1485331,3287.7,3287.1,2.4803357]
[1732306628545,0.1485331,3287.7,3287.6,2.8076357]
[1732306629040,0.1485331,3287.7,3287.6,5.6152714]
[1732306629333,0.1485331,3287.7,3287.6,2.8076357]
[1732306629700,0.1485331,3287.7,3287.6,5.6152714]
[1732306630211,0.1485331,3287.7,3287.6,5.64568473]
[1732306630564,0.1485331,3287.7,3287.6,6.32773187]
[1732306631717,0.6985331,3287.7,3287.6,6.32773187]
[1732306632012,0.6985331,3287.7,3287.6,6.29731854]
[1732306633021,0.6985331,3287.7,3287.6,5.6152714]
[1732306634105,0.1485331,3287.7,3287.6,5.6152714]
[1732306634336,0.1485331,3287.7,3287.6,5.64568096]
[1732306634776,0.1485331,3287.7,3287.6,5.64568003]
[1732306635572,0.6985331,3287.7,3287.6,5.64568003]
[1732306635777,0.6985331,3287.7,3287.6,5.6152714]
[1732306638778,0.6985331,3287.7,3287.6,2.8076357]
[1732306638972,0.89880641,3287.7,3287.6,2.8076357]
[1732306639868,1.9967331,3287.7,3287.6,1.10154809]
[1732306640670,1.9967331,3287.7,3286.6,0.03041824]
[1732306640875,1.7416,3287.6,3286.4,2.83805629]
[1732306641179,1.94127331,3287.6,3286.4,2.83805629]
[1732306641351,0.03041459,3287.5,3286.4,2.83805629]
[1732306641884,0.03041459,3287.5,3287.4,2.8076357]
[1732306642094,1.94127331,3287.6,3287.4,2.8076357]
[1732306642389,0.20898064,3287.5,3287.4,2.8076357]
[1732306642753,0.75898064,3287.5,3287.4,2.8076357]
[1732306643862,0.20898064,3287.5,3287.4,5.6152714]
[1732306644174,0.1485331,3287.7,3287.4,5.6152714]
[1732306645264,0.55,3287.6,3287.4,5.6152714]
[1732306645778,0.55,3287.6,3287.4,2.8076357]
[1732306645976,0.55,3287.6,3287.5,2.8076357]
[1732306647563,0.1485331,3287.7,3287.6,1.2338]
[1732306648155,0.1485331,3287.7,3287.5,2.8076357]
[1732306648758,0.55,3287.6,3287.5,2.8076357]
[1732306649295,0.55,3287.6,3287.5,4.0414357]
[1732306650801,0.55,3287.6,3287.5,2.8076357]
[1732306654627,0.55,3287.6,3287.4,2.8076357]
[1732306654628,1.816,3287.6,3287.4,2.8076357]
[1732306654781,0.74645331,3287.5,3287.4,2.8076357]
[1732306656894,0.74645331,3287.5,3287.4,5.6152714]
[1732306657534,0.74645331,3287.5,3287.4,2.8076357]
[1732306658096,0.74645331,3287.5,3287.4,5.6152714]
[1732306658297,0.19645331,3287.5,3287.4,5.6152714]
[1732306658601,0.1485331,3287.7,3287.4,5.6152714]
[1732306659517,0.55,3287.6,3287.4,5.6152714]
[1732306659712,0.55,3287.6,3287.4,2.8076357]
[1732306660139,0.55,3287.6,3287.5,2.8076357]
[1732306661496,0.55,3287.6,3287.4,2.8076357]
[1732306661497,0.55,3287.6,3286.9,0.03041635]
[1732306661722,0.55,3287.6,3287.5,5.6152714]
[1732306662244,0.55,3287.6,3287.5,2.8076357]
[1732306662736,0.55,3287.6,3287.5,5.6152714]
[1732306662922,0.1485331,3287.7,3287.5,6.8767714]
[1732306663140,0.1485331,3287.7,3287.5,5.6152714]
[1732306664340,0.55,3287.6,3287.5,5.6152714]
[1732306665135,0.1485331,3287.7,3287.5,5.6152714]
[1732306666208,0.55,3287.6,3287.5,5.6152714]
[1732306668341,0.55,3287.6,3287.5,6.7700714]
[1732306668546,0.55,3287.6,3287.5,7.44707854]
[1732306669002,0.55,3287.6,3287.5,6.7700714]
[1732306672245,0.55,3287.6,3287.5,5.6152714]
[1732306674879,0.55,3287.6,3287.5,2.8076357]
[1732306675359,0.55,3287.6,3287.5,5.6152714]
[1732306676161,0.55,3287.6,3287.5,2.8076357]
[1732306676358,0.74047331,3287.6,3287.5,2.8076357]
[1732306677870,0.74047331,3287.6,3287.5,5.6152714]
[1732306678039,0.55,3287.6,3287.5,5.6152714]
[1732306679483,0.1485331,3287.7,3287.5,5.6152714]
[1732306679786,0.1485331,3287.7,3287.6,0.03041113]
[1732306680280,0.1485331,3287.7,3287.5,5.6152714]
[1732306680844,0.55,3287.6,3287.5,5.6152714]
[1732306681159,0.1485331,3287.7,3287.5,6.30573965]
[1732306681487,0.1485331,3287.7,3287.6,1.27860879]
[1732306682689,0.6985331,3287.7,3287.6,1.27860879]
[1732306682868,0.6985331,3287.7,3287.6,1.2482]
[1732306683222,0.55,3287.6,3287.3,1.161]
[1732306683388,0.55,3287.6,3287.5,2.8076357]
[1732306684191,0.55,3287.6,3286.3,0.0475077]
[1732306684192,1.7645,3287.6,3286.4,1.161]
[1732306684411,1.7645,3287.6,3287.5,2.8076357]
[1732306685487,1.7645,3287.6,3287.5,1.10146686]
[1732306685690,1.2145,3287.5,3286.3,0.0475077]
[1732306685877,1.2145,3287.3,3286.9,2.8076357]
[1732306686057,1.24491459,3287.2,3286.9,2.8076357]
[1732306686255,0.55,3287.1,3286.9,2.8076357]
[1732306689402,0.03041459,3287.0,3286.9,2.8076357]
[1732306690106,0.55,3287.1,3286.9,2.8076357]
[1732306692705,0.03041459,3287.0,3286.9,2.8076357]
[1732306692869,1.95480605,3287.0,3286.9,2.8076357]
[1732306693073,1.77531459,3287.0,3286.9,2.8076357]
[1732306695905,1.0913,3286.8,3286.4,2.8076357]
[1732306696115,1.12171459,3286.8,3286.7,2.8076357]
[1732306696407,1.0913,3286.8,3286.7,2.8076357]
[1732306697696,1.1013,3286.8,3286.7,2.8076357]
[1732306697904,1.72861459,3286.8,3286.7,2.8076357]
[1732306698078,1.90147605,3286.8,3286.7,2.8076357]
[1732306698276,1.6882,3286.7,3286.3,2.8551434]
[1732306698505,1.1382,3286.5,3286.3,2.8551434]
[1732306698675,0.03041459,3286.4,3286.3,2.8551434]
[1732306699007,1.1382,3286.4,3286.3,2.8551434]
[1732306700407,1.6882,3286.4,3286.3,2.8551434]
[1732306700708,0.55,3286.2,3286.0,2.8076357]
[1732306700914,0.55,3285.9,3285.7,2.8076357]
[1732306701214,0.74923459,3285.8,3285.7,2.8076357]
[1732306702685,0.71882,3285.8,3285.7,2.8076357]
[1732306705886,1.80022,3285.8,3285.7,2.8076357]
[1732306706093,1.6314,3285.8,3285.7,2.8076357]
[1732306714522,1.1421,3286.1,3285.7,2.8076357]
[1732306714720,1.1421,3286.7,3286.0,2.8076357]
[1732306714923,1.1421,3286.7,3285.5,1.0715]
[1732306714924,0.03041459,3286.6,3286.5,2.8076357]
[1732306715159,0.03041459,3286.6,3286.5,1.10051053]
[1732306715362,1.1421,3286.7,3286.5,1.10051053]
[1732306716355,0.03041459,3286.6,3286.5,1.10051053]
[1732306716718,1.1421,3286.7,3286.5,1.10051053]
[1732306717369,0.55,3286.6,3286.5,1.10051053]
[1732306717537,0.71921,3286.6,3286.5,1.10051053]
[1732306720160,0.71921,3286.6,3286.4,2.8076357]
[1732306720371,0.55,3286.9,3286.4,2.8076357]
[1732306720528,0.55,3286.9,3286.8,2.8076357]
[1732306722764,0.55,3287.2,3286.8,2.8076357]
[1732306722986,0.55,3287.0,3286.8,2.8076357]
[1732306726167,0.5804,3287.0,3286.8,2.8076357]
[1732306727561,1.1053,3286.9,3285.2,1.0892258]
[1732306727770,0.74898459,3286.8,3286.4,2.8076357]
[1732306727926,0.74897,3286.8,3286.4,2.8076357]
[1732306728966,0.74897,3286.8,3286.7,2.8076357]
[1732306729173,0.5804,3286.8,3286.7,2.8076357]
[1732306729873,0.5804,3286.8,3286.7,1.10090757]
[1732306730077,4.8222,3286.8,3285.2,0.0304295]
[1732306730261,0.56,3285.3,3284.1,2.8076357]
[1732306730463,0.55,3285.0,3284.1,2.8076357]
[1732306730778,0.03041459,3284.9,3284.1,2.8076357]
[1732306730980,0.55,3284.7,3284.5,2.8076357]
[1732306731185,0.5804,3284.7,3284.5,2.8076357]
[1732306731486,0.0304,3284.7,3284.5,2.8076357]
[1732306732646,1.28430976,3284.6,3283.8,2.8076357]
[1732306732885,1.28430976,3284.5,3283.8,2.8076357]
[1732306733185,0.55,3284.3,3283.8,3.20112927]
[1732306733371,0.55,3284.1,3283.8,2.8076357]
[1732306733688,0.55,3283.9,3283.8,2.8076357]
[1732306733897,1.31470976,3283.9,3283.8,5.6152714]
[1732306736950,1.31470976,3283.9,3283.8,7.36372854]
[1732306737377,1.31470976,3283.9,3283.8,6.6894714]
[1732306737888,1.31470976,3283.9,3283.8,3.8818357]
[1732306738350,1.31470976,3283.9,3283.8,6.6894714]
[1732306738557,1.31470976,3283.9,3283.8,3.8818357]
[1732306738748,1.31470976,3283.9,3283.8,6.6894714]
[1732306739153,1.31338298,3283.9,3283.8,3.8818357]
[1732306739786,1.31338298,3283.9,3283.8,1.0742]
[1732306739991,1.31338298,3283.9,3283.8,3.8818357]
[1732306740759,1.31338298,3283.9,3283.8,6.6894714]
[1732306741078,0.76338298,3283.9,3283.8,7.35841854]
[1732306741685,0.03041459,3285.5,3283.9,1.0742]
[1732306741910,5.0,3285.9,3285.5,2.8076357]
[1732306741911,1.0967,3285.9,3285.5,2.8076357]
[1732306742188,0.03041459,3285.8,3285.1,2.8076357]
[1732306742403,1.0967,3285.9,3285.8,2.8076357]
[1732306743394,1.0967,3286.2,3285.8,2.8076357]
[1732306743591,1.0967,3286.5,3286.3,2.8076357]
[1732306744094,1.0967,3286.5,3286.0,2.8076357]
[1732306744258,0.03041459,3286.4,3286.0,2.8076357]
[1732306744455,1.0967,3286.5,3286.3,2.8076357]
[1732306744763,0.03041459,3287.0,3286.3,2.8076357]
[1732306744764,1.0967,3287.0,3286.3,2.8076357]
[1732306744964,1.0967,3287.0,3286.7,2.8076357]
[1732306745497,1.0967,3287.0,3286.1,2.8076357]
[1732306745498,0.03041459,3286.9,3286.1,2.8076357]
[1732306745660,0.03041459,3286.9,3286.4,2.8076357]
[1732306745996,0.06084904,3286.9,3286.4,2.8076357]
[1732306746197,0.58043445,3286.9,3286.4,2.8076357]
[1732306746505,0.55,3286.7,3286.4,2.8076357]
[1732306746833,0.03041459,3286.6,3286.1,2.8076357]
[1732306746958,1.0871,3286.5,3286.1,2.8076357]
[1732306747179,0.58041459,3286.4,3285.8,2.8076357]
[1732306747475,0.55,3286.2,3285.8,2.8076357]
[1732306747783,0.03041459,3286.1,3285.8,2.8076357]
[1732306748197,0.55,3285.9,3285.8,2.8076357]
[1732306748416,0.55,3285.9,3285.5,2.8076357]
[1732306748417,0.61084904,3285.9,3285.5,2.8076357]
[1732306748618,0.55,3285.7,3285.5,2.8076357]
[1732306748820,0.58043445,3285.7,3285.5,2.8076357]
[1732306749514,0.58043445,3285.7,3284.9,2.8076357]
[1732306749515,0.03041459,3285.6,3284.9,2.8076357]
[1732306749732,0.55,3285.4,3284.9,2.8076357]
[1732306749878,0.55,3285.2,3284.5,1.071]
[1732306750077,0.55,3285.2,3285.1,2.8076357]
[1732306750078,0.61084904,3285.2,3285.1,2.8076357]
[1732306750392,0.58043445,3285.2,3285.1,2.8076357]
[1732306752725,0.03043445,3285.2,3285.1,2.8076357]
[1732306753313,0.55,3285.1,3284.8,2.8076357]
[1732306753491,0.03041459,3285.0,3284.8,2.8076357]
[1732306753805,0.03043445,3285.0,3284.8,2.8076357]
[1732306754322,0.03043445,3285.0,3284.9,1.1265]
[1732306756116,0.03043445,3285.0,3284.8,2.8076357]
[1732306759495,0.03043445,3285.0,3284.6,1.0782]
[1732306759694,0.03043445,3285.0,3284.9,2.8076357]
[1732306760225,0.03043445,3285.0,3284.6,2.8076357]
[1732306761111,0.03043445,3285.0,3284.9,2.8076357]
[1732306762691,0.03043445,3285.0,3284.9,3.9145357]
[1732306763598,0.03043445,3285.0,3284.9,2.8076357]
[1732306767089,0.7445179,3285.0,3284.6,2.8076357]
[1732306767294,0.58041459,3284.9,3284.6,2.8076357]
[1732306767541,0.55,3284.9,3284.6,2.8076357]
[1732306768329,0.03041459,3284.8,3284.6,2.8076357]
[1732306768628,0.03043445,3284.8,3284.6,2.8076357]
[1732306770835,0.55,3284.7,3284.6,2.8076357]
[1732306771007,0.55,3284.5,3284.3,2.8076357]
[1732306771331,0.71502,3284.4,3284.3,2.8076357]
[1732306773945,0.03043445,3284.5,3284.4,1.037]
[1732306778265,0.03043445,3284.5,3284.4,3.8446357]
[1732306778761,0.03043445,3284.5,3284.4,2.8076357]
[1732306783551,0.03043445,3284.5,3284.4,3.8742357]
[1732306784781,0.03043445,3284.5,3284.4,6.6818714]
[1732306785075,0.03043445,3284.5,3284.4,7.35005854]
[1732306785636,0.03043445,3284.5,3284.4,4.54242284]
[1732306785860,0.03043445,3284.5,3284.4,4.57285944]
[1732306786080,0.03043445,3284.5,3284.4,3.9046723]
[1732306786783,0.03043445,3284.5,3284.4,3.8742357]
[1732306789141,0.03043445,3284.5,3284.4,2.8076357]
[1732306791354,0.58043445,3284.5,3284.4,2.8076357]
[1732306791551,0.03043445,3284.5,3284.4,2.8076357]
[1732306791853,0.58043445,3284.5,3284.4,1.0997787]
[1732306792047,0.03043445,3284.5,3284.4,1.0997787]
[1732306792255,0.55,3284.4,3284.1,2.8076357]
[1732306792583,0.03041459,3284.3,3284.1,2.8076357]
[1732306792747,0.03043445,3284.5,3284.1,2.8076357]
[1732306792948,0.03043445,3284.5,3284.4,2.8076357]
[1732306796958,0.58043445,3284.5,3284.4,2.8076357]
[1732306797681,0.03043445,3284.5,3284.1,2.8076357]
[1732306797855,0.58043445,3284.5,3284.1,2.8076357]
[1732306798056,0.58041459,3284.4,3284.1,2.8076357]
[1732306798257,1.0135,3284.3,3283.8,2.8076357]
[1732306798558,1.0135,3284.3,3283.7,2.8076357]
[1732306798559,0.70939146,3284.2,3283.7,2.8076357]
[1732306799058,0.70939146,3284.2,3284.0,2.8076357]
[1732306799560,1.0135,3284.1,3283.7,2.8076357]
[1732306799765,0.58041459,3284.0,3283.7,2.8076357]
[1732306800169,0.55,3284.0,3283.7,2.8076357]
[1732306801060,0.58041459,3284.0,3283.7,2.8076357]
[1732306801267,0.55,3284.0,3283.4,2.8076357]
[1732306801462,0.55,3283.8,3283.4,2.8076357]
[1732306801691,0.03041459,3283.7,3283.4,2.8076357]
[1732306802273,1.0891,3283.6,3283.4,2.8076357]
[1732306802474,0.55,3283.5,3283.4,2.8076357]
[1732306802676,0.55,3283.3,3282.2,1.0774]
[1732306802875,0.03041459,3283.2,3282.8,2.8076357]
[1732306803278,0.7199949,3283.2,3283.1,2.8076357]
[1732306803502,0.7199949,3283.2,3283.1,1.09898194]
[1732306803813,0.7199949,3283.2,3281.5,0.04046184]
[1732306803814,0.55,3282.9,3282.5,2.8076357]
[1732306804014,0.58043445,3282.9,3282.5,2.8076357]
[1732306805088,0.61084904,3282.9,3282.5,2.8076357]
[1732306805289,0.61084904,3282.9,3282.2,2.8076357]
[1732306805607,0.61084904,3282.9,3281.7,2.8076357]
[1732306805608,1.0464,3282.4,3281.7,2.8076357]
[1732306805800,0.58041459,3282.3,3281.7,2.8076357]
[1732306806371,0.58041459,3282.3,3281.4,2.8076357]
[1732306806781,0.55,3282.1,3281.1,2.8076357]
[1732306806968,0.03041459,3282.0,3281.4,2.8076357]
[1732306807588,0.58043445,3282.1,3281.7,2.8076357]
[1732306807910,0.03043445,3282.1,3282.0,2.8076357]
[1732306811599,0.03043445,3282.1,3282.0,3.8274357]
[1732306811910,0.03043445,3282.1,3282.0,4.21017927]
[1732306812076,0.03043445,3282.1,3282.0,3.8274357]
[1732306813186,0.03043445,3282.1,3282.0,2.8076357]
[1732306814880,0.03043445,3282.1,3282.0,3.9009357]
[1732306818624,0.03043445,3282.1,3282.0,6.7085714]
[1732306819229,0.03043445,3282.1,3282.0,3.9009357]
[1732306819687,0.03043445,3282.1,3282.0,4.29102927]
[1732306821007,0.03043445,3282.1,3282.0,3.9009357]
[1732306821211,0.03043445,3282.1,3282.0,2.8076357]
[1732306826425,0.03043445,3282.1,3282.0,3.7342357]
[1732306827004,0.03043445,3282.1,3282.0,6.5418714]
[1732306827336,0.03043445,3282.1,3282.0,7.33383812]
[1732306827540,0.03043445,3282.1,3282.0,7.70129926]
[1732306830302,0.03043445,3282.1,3282.0,7.27625521]
[1732306830505,0.8778,3283.7,3282.6,0.8649]
[1732306830695,0.9111,3284.1,3283.6,2.8076357]
[1732306830894,0.9111,3284.1,3284.0,2.8076357]
[1732306832094,1.4611,3284.1,3283.7,2.8076357]
[1732306832298,0.58041459,3284.0,3283.4,2.8076357]
[1732306832528,0.55,3283.8,3283.4,2.8076357]
[1732306832727,0.58041459,3283.8,3283.4,2.8076357]
[1732306832930,0.55,3283.8,3283.4,2.8076357]
[1732306833533,0.55,3283.8,3283.7,2.8076357]
[1732306834042,0.55,3283.8,3283.7,0.05492063]
[1732306834194,0.55,3283.8,3283.4,2.8076357]
[1732306834395,0.55,3283.6,3283.5,0.05487768]
[1732306835333,0.58041459,3283.6,3283.5,0.05487768]
[1732306835541,1.47881459,3283.6,3283.1,2.8076357]
[1732306836029,1.4484,3283.6,3283.2,0.05425088]
[1732306836400,0.03041459,3283.5,3283.2,0.05425088]
[1732306837004,0.55,3283.3,3282.8,2.8076357]
[1732306837207,0.55,3283.0,3282.9,0.05412417]
[1732306837448,0.8709,3282.9,3282.2,2.8076357]
[1732306837640,0.58041459,3282.8,3282.3,0.05404393]
[1732306837933,0.58041459,3282.8,3281.9,2.8076357]
[1732306837934,0.55,3282.6,3281.9,2.8076357]
[1732306838119,0.03041459,3282.5,3282.4,0.05407254]
[1732306838328,0.03041459,3282.5,3281.9,2.8076357]
[1732306838639,0.55,3282.6,3282.2,2.8076357]
[1732306838801,0.55,3282.6,3282.5,2.8076357]
[1732306838996,0.55,3282.6,3282.5,2.86172667]
[1732306840102,0.55,3282.9,3282.5,2.86172667]
[1732306840432,0.55,3282.9,3282.8,2.8076357]
[1732306840637,0.55,3282.9,3282.8,0.05414015]
[1732306840836,0.55,3282.9,3282.6,3.41070663]
[1732306841034,0.55,3282.9,3282.7,0.05412783]
[1732306841837,0.55,3283.2,3282.7,0.05412783]
[1732306842201,0.03041459,3284.2,3283.0,3.41070663]
[1732306842542,0.873,3284.1,3283.1,0.05420758]
[1732306842723,0.03041459,3284.0,3283.1,0.05420758]
[1732306843041,0.873,3283.9,3283.1,0.05420758]
[1732306843345,0.873,3283.7,3283.1,0.05420758]
[1732306843510,0.8649,3284.3,3283.1,0.05420758]
[1732306843511,0.55,3283.4,3283.1,0.05420758]
[1732306843711,0.03041459,3283.3,3283.1,0.05420758]
[1732306843927,0.03041459,3283.3,3282.6,3.41070663]
[1732306844536,0.03041459,3283.3,3282.7,0.05422227]
[1732306845450,0.55,3283.1,3282.7,0.05422227]
[1732306845615,0.03041459,3283.0,3282.7,0.05422227]
[1732306846612,0.55,3283.1,3282.7,0.05422227]
[1732306846822,0.03041459,3283.0,3282.7,0.05422227]
[1732306847143,0.03041459,3283.0,3282.2,3.41070663]
[1732306847144,0.55,3282.8,3282.2,3.41070663]
[1732306847440,0.03041459,3282.7,3282.2,3.41070663]
[1732306847646,0.55,3282.5,3282.2,3.41070663]
[1732306847940,0.03041459,3282.4,3282.2,3.41070663]
[1732306848621,0.03041459,3282.4,3282.3,0.05231103]
[1732306848806,0.03041459,3282.4,3282.2,3.41070663]
[1732306849007,0.03041459,3282.4,3282.3,0.05231103]
[1732306849203,0.03041459,3282.4,3281.8,3.41070663]
[1732306849506,0.03041459,3282.4,3281.9,0.05238412]
[1732306849906,0.03041459,3282.4,3281.8,3.41070663]
[1732306850220,0.55,3282.2,3281.9,0.052378]
[1732306850556,0.55,3282.2,3281.8,3.41070663]